[Event "Live Chess"]
[Site "Chess.com"]
[Date "2023.05.20"]
[Round "-"]
[White "LanceMaster23"]
[Black "parcellforce"]
[Result "1-0"]
[WhiteElo "1861"]
[BlackElo "1361"]
[TimeControl "300"]
[EndTime "15:36:34 PDT"]
[Termination "LanceMaster23 won on time"]

1. Nf3 {[%clk 0:04:59.1]} 1... Nf6 {[%clk 0:04:58.5]} 2. d4 {[%clk 0:04:58.5]}
2... e6 {[%clk 0:04:58]} 3. Bf4 {[%clk 0:04:58.2]} 3... d5 {[%clk 0:04:57.9]} 4.
e3 {[%clk 0:04:57.7]} 4... c5 {[%clk 0:04:57.1]} 5. Be2 {[%clk 0:04:57.2]} 5...
Nc6 {[%clk 0:04:56.2]} 6. c3 {[%clk 0:04:56.5]} 6... Bd6 {[%clk 0:04:55.3]} 7.
Bg3 {[%clk 0:04:54.8]} 7... Bxg3 {[%clk 0:04:55.2]} 8. hxg3 {[%clk 0:04:54.7]}
8... cxd4 {[%clk 0:04:48.9]} 9. exd4 {[%clk 0:04:53.5]} 9... Bd7 {[%clk
0:04:44.4]} 10. Nbd2 {[%clk 0:04:52.2]} 10... Qb6 {[%clk 0:04:42.4]} 11. Qb3
{[%clk 0:04:50.3]} 11... Qxb3 {[%clk 0:04:41.3]} 12. axb3 {[%clk 0:04:50.2]}
12... O-O-O {[%clk 0:04:35.7]} 13. b4 {[%clk 0:04:48.3]} 13... Kb8 {[%clk
0:04:27.1]} 14. b5 {[%clk 0:04:43.2]} 14... Ne7 {[%clk 0:04:26.3]} 15. Ne5
{[%clk 0:04:40.3]} 15... Rhf8 {[%clk 0:04:16.9]} 16. Nb3 {[%clk 0:04:04.9]}
16... b6 {[%clk 0:04:10.7]} 17. O-O {[%clk 0:03:51.4]} 17... h5 {[%clk
0:04:03.6]} 18. Ra3 {[%clk 0:03:38.5]} 18... Kb7 {[%clk 0:03:56.9]} 19. Rfa1
{[%clk 0:03:35.1]} 19... Ra8 {[%clk 0:03:56.7]} 20. Bf3 {[%clk 0:02:02]} 20...
g6 {[%clk 0:03:49.7]} 21. c4 {[%clk 0:01:57.8]} 21... Bc8 {[%clk 0:03:41.5]} 22.
c5 {[%clk 0:01:52.5]} 22... bxc5 {[%clk 0:03:08.3]} 23. dxc5 {[%clk 0:01:52.4]}
23... g5 {[%clk 0:02:43.4]} 24. Ra6 {[%clk 0:01:32]} 24... Kb8 {[%clk 0:02:33]}
25. R6a5 {[%clk 0:01:19.1]} 25... g4 {[%clk 0:02:29.5]} 26. Be2 {[%clk
0:01:11.2]} 26... Ne4 {[%clk 0:02:27.2]} 27. b6 {[%clk 0:01:03.7]} 27... Nf6
{[%clk 0:02:06.8]} 28. Rxa7 {[%clk 0:00:52.8]} 28... Rxa7 {[%clk 0:01:57.8]} 29.
Rxa7 {[%clk 0:00:52.5]} 29... Bb7 {[%clk 0:01:43.2]} 30. Bb5 {[%clk 0:00:45.1]}
30... Nc8 {[%clk 0:01:23.4]} 31. Ra5 {[%clk 0:00:32.3]} 31... Rd8 {[%clk
0:01:22.4]} 32. c6 {[%clk 0:00:30.1]} 32... Nxb6 {[%clk 0:01:14.1]} 33. cxb7
{[%clk 0:00:29.5]} 33... Kxb7 {[%clk 0:01:13.6]} 34. Bc6+ {[%clk 0:00:28.7]}
34... Kc7 {[%clk 0:01:11]} 35. Ra8 {[%clk 0:00:27.3]} 35... Rxa8 {[%clk
0:01:09.8]} 36. Bxa8 {[%clk 0:00:25.8]} 36... Nxa8 {[%clk 0:01:06.6]} 37. Nxf7
{[%clk 0:00:25.3]} 37... Nb6 {[%clk 0:01:05.3]} 38. Ng5 {[%clk 0:00:24.5]} 38...
Ne4 {[%clk 0:01:02.9]} 39. Nxe4 {[%clk 0:00:22.9]} 39... dxe4 {[%clk 0:01:02.1]}
40. Nc5 {[%clk 0:00:22.5]} 40... Kd6 {[%clk 0:01:00]} 41. Nxe4+ {[%clk
0:00:22.2]} 41... Kd5 {[%clk 0:00:59.7]} 42. Nf6+ {[%clk 0:00:21.7]} 42... Kd4
{[%clk 0:00:57.3]} 43. Nxh5 {[%clk 0:00:21.6]} 43... Nc4 {[%clk 0:00:56.3]} 44.
Nf6 {[%clk 0:00:21.1]} 44... Nxb2 {[%clk 0:00:55.4]} 45. Nxg4 {[%clk 0:00:20.9]}
45... Nc4 {[%clk 0:00:54.8]} 46. f4 {[%clk 0:00:20.2]} 46... Nd2 {[%clk
0:00:53]} 47. Kf2 {[%clk 0:00:19.6]} 47... Ne4+ {[%clk 0:00:51.8]} 48. Kf3
{[%clk 0:00:19.5]} 48... Kd5 {[%clk 0:00:48.4]} 49. Ne3+ {[%clk 0:00:18.3]}
49... Kd4 {[%clk 0:00:46.7]} 50. Nc2+ {[%clk 0:00:17.9]} 50... Kd5 {[%clk
0:00:45.7]} 51. Nb4+ {[%clk 0:00:16.9]} 51... Kd4 {[%clk 0:00:44.9]} 52. Nc6+
{[%clk 0:00:16.5]} 52... Kd5 {[%clk 0:00:44.2]} 53. Ne7+ {[%clk 0:00:16.2]}
53... Kd4 {[%clk 0:00:41.9]} 54. g4 {[%clk 0:00:15.5]} 54... Nd2+ {[%clk
0:00:39.6]} 55. Kg3 {[%clk 0:00:15.2]} 55... Ne4+ {[%clk 0:00:38.4]} 56. Kh4
{[%clk 0:00:14.6]} 56... Nd2 {[%clk 0:00:35.3]} 57. g5 {[%clk 0:00:14.2]} 57...
Ne4 {[%clk 0:00:34.1]} 58. g6 {[%clk 0:00:13.9]} 58... Nf6 {[%clk 0:00:31.6]}
59. g7 {[%clk 0:00:13.5]} 59... Ke4 {[%clk 0:00:29]} 60. g3 {[%clk 0:00:13]}
60... e5 {[%clk 0:00:26.3]} 61. fxe5 {[%clk 0:00:10.6]} 61... Kxe5 {[%clk
0:00:25.2]} 62. g8=Q {[%clk 0:00:10.1]} 62... Nxg8 {[%clk 0:00:24.1]} 63. Nxg8
{[%clk 0:00:10]} 63... Ke6 {[%clk 0:00:22.5]} 64. Nh6 {[%clk 0:00:09.7]} 64...
Kf6 {[%clk 0:00:21.9]} 65. g4 {[%clk 0:00:09.6]} 65... Kg7 {[%clk 0:00:21.6]}
66. g5 {[%clk 0:00:09.5]} 66... Kg6 {[%clk 0:00:21.1]} 67. Ng4 {[%clk
0:00:08.8]} 67... Kg7 {[%clk 0:00:20.6]} 68. Kh5 {[%clk 0:00:08.7]} 68... Kh7
{[%clk 0:00:20]} 69. g6+ {[%clk 0:00:08.6]} 69... Kg7 {[%clk 0:00:19.5]} 70. Kg5
{[%clk 0:00:08.5]} 70... Kg8 {[%clk 0:00:18.8]} 71. Kh6 {[%clk 0:00:08.4]} 71...
Kh8 {[%clk 0:00:18.3]} 72. g7+ {[%clk 0:00:07.1]} 72... Kg8 {[%clk 0:00:17.9]}
73. Nf6+ {[%clk 0:00:07]} 73... Kf7 {[%clk 0:00:16.7]} 74. g8=Q+ {[%clk
0:00:06.9]} 74... Kxf6 {[%clk 0:00:16.1]} 75. Qg7+ {[%clk 0:00:06.8]} 75... Kf5
{[%clk 0:00:15.7]} 76. Qg6+ {[%clk 0:00:06.3]} 76... Kf4 {[%clk 0:00:15.4]} 77.
Qg5+ {[%clk 0:00:05.4]} 77... Ke4 {[%clk 0:00:14.8]} 78. Kg6 {[%clk 0:00:05.3]}
78... Kf3 {[%clk 0:00:14.1]} 79. Qf5+ {[%clk 0:00:05.2]} 79... Ke3 {[%clk
0:00:13.5]} 80. Kf6 {[%clk 0:00:05.1]} 80... Kd4 {[%clk 0:00:12.5]} 81. Qe5+
{[%clk 0:00:05]} 81... Kd3 {[%clk 0:00:11.8]} 82. Kf5 {[%clk 0:00:04.9]} 82...
Kc4 {[%clk 0:00:11.2]} 83. Qe4+ {[%clk 0:00:04.8]} 83... Kc5 {[%clk 0:00:10.4]}
84. Ke5 {[%clk 0:00:04.7]} 84... Kb5 {[%clk 0:00:08.8]} 85. Qd4 {[%clk
0:00:04.6]} 85... Kc6 {[%clk 0:00:07]} 86. Ke6 {[%clk 0:00:03.9]} 86... Kb5
{[%clk 0:00:04]} 87. Qc3 {[%clk 0:00:03.8]} 87... Kb6 {[%clk 0:00:03]} 88. Kd6
{[%clk 0:00:03.7]} 88... Kb5 {[%clk 0:00:02.3]} 89. Qb3+ {[%clk 0:00:03.6]}
89... Ka5 {[%clk 0:00:00.7]} 90. Kc6 {[%clk 0:00:03.2]} 1-0

[Event "Live Chess"]
[Site "Chess.com"]
[Date "2023.05.20"]
[Round "-"]
[White "JoshMcK"]
[Black "jagbama"]
[Result "0-1"]
[WhiteElo "1533"]
[BlackElo "1146"]
[TimeControl "300"]
[EndTime "15:36:36 PDT"]
[Termination "jagbama won by resignation"]

1. e4 {[%clk 0:04:58.9]} 1... e5 {[%clk 0:04:56.1]} 2. Nf3 {[%clk 0:04:57.2]}
2... Nc6 {[%clk 0:04:55.8]} 3. Bb5 {[%clk 0:04:55]} 3... Bc5 {[%clk 0:04:55.4]}
4. c3 {[%clk 0:04:47.5]} 4... Nf6 {[%clk 0:04:49.3]} 5. d4 {[%clk 0:04:45.6]}
5... Bb6 {[%clk 0:04:36.5]} 6. O-O {[%clk 0:04:33.1]} 6... exd4 {[%clk
0:04:26.9]} 7. e5 {[%clk 0:04:30.5]} 7... Ne4 {[%clk 0:03:57.3]} 8. Bxc6 {[%clk
0:04:26.2]} 8... bxc6 {[%clk 0:03:53.8]} 9. cxd4 {[%clk 0:04:24.8]} 9... d6
{[%clk 0:03:36.1]} 10. Re1 {[%clk 0:04:19]} 10... d5 {[%clk 0:03:31.6]} 11. Nc3
{[%clk 0:04:13.4]} 11... Nxc3 {[%clk 0:03:23.4]} 12. bxc3 {[%clk 0:04:13.3]}
12... O-O {[%clk 0:03:15.3]} 13. Bg5 {[%clk 0:04:07.2]} 13... Qd7 {[%clk
0:03:00.9]} 14. Bf4 {[%clk 0:04:01]} 14... Qf5 {[%clk 0:02:27.7]} 15. Be3 {[%clk
0:03:54.5]} 15... Qg6 {[%clk 0:02:22]} 16. Nh4 {[%clk 0:03:44.4]} 16... Qe4
{[%clk 0:02:08.4]} 17. Qf3 {[%clk 0:03:34.5]} 17... Qxh4 {[%clk 0:02:03.4]} 0-1

[Event "Live Chess"]
[Site "Chess.com"]
[Date "2023.05.20"]
[Round "-"]
[White "LodeshChess"]
[Black "LL220284LL"]
[Result "0-1"]
[WhiteElo "1105"]
[BlackElo "2399"]
[TimeControl "300"]
[EndTime "15:36:46 PDT"]
[Termination "LL220284LL won by resignation"]

1. e4 {[%clk 0:04:56.7]} 1... e6 {[%clk 0:04:58.1]} 2. d4 {[%clk 0:04:55.3]}
2... d5 {[%clk 0:04:57.8]} 3. e5 {[%clk 0:04:55]} 3... c5 {[%clk 0:04:56.7]} 4.
c3 {[%clk 0:04:54.6]} 4... Nc6 {[%clk 0:04:55.8]} 5. Nf3 {[%clk 0:04:54.3]} 5...
Qb6 {[%clk 0:04:54.1]} 6. Bd3 {[%clk 0:04:54]} 6... cxd4 {[%clk 0:04:49.6]} 7.
O-O {[%clk 0:04:50]} 7... Bd7 {[%clk 0:04:48.1]} 8. a3 {[%clk 0:04:42.1]} 8...
Nge7 {[%clk 0:04:44.3]} 9. cxd4 {[%clk 0:04:30.5]} 9... Nxd4 {[%clk 0:04:43.1]}
10. b4 {[%clk 0:04:26.3]} 10... Nxf3+ {[%clk 0:04:39.8]} 11. Qxf3 {[%clk
0:04:25.8]} 11... Ng6 {[%clk 0:04:36.9]} 12. Be3 {[%clk 0:04:20]} 12... d4
{[%clk 0:04:33.6]} 13. Bd2 {[%clk 0:03:39.6]} 13... Nxe5 {[%clk 0:04:30.5]} 14.
Qg3 {[%clk 0:03:29.7]} 14... Nxd3 {[%clk 0:04:28.6]} 15. Qxd3 {[%clk 0:03:28.8]}
15... Bb5 {[%clk 0:04:27.5]} 0-1

[Event "Live Chess"]
[Site "Chess.com"]
[Date "2023.05.20"]
[Round "-"]
[White "AbilifyXL"]
[Black "KeithArkell"]
[Result "0-1"]
[WhiteElo "1968"]
[BlackElo "2608"]
[TimeControl "300"]
[EndTime "15:37:06 PDT"]
[Termination "KeithArkell won by resignation"]

1. d4 {[%clk 0:04:52.8]} 1... e6 {[%clk 0:04:58.8]} 2. c4 {[%clk 0:04:51.1]}
2... Bb4+ {[%clk 0:04:57.7]} 3. Bd2 {[%clk 0:04:49.2]} 3... Bxd2+ {[%clk
0:04:56.7]} 4. Qxd2 {[%clk 0:04:48.5]} 4... Nf6 {[%clk 0:04:56.6]} 5. Nc3 {[%clk
0:04:47.7]} 5... d6 {[%clk 0:04:56.5]} 6. Nf3 {[%clk 0:04:46.7]} 6... Qe7 {[%clk
0:04:55.9]} 7. e4 {[%clk 0:04:45.9]} 7... e5 {[%clk 0:04:55.5]} 8. dxe5 {[%clk
0:04:43]} 8... dxe5 {[%clk 0:04:53.9]} 9. Be2 {[%clk 0:04:41.1]} 9... c6 {[%clk
0:04:51.4]} 10. O-O {[%clk 0:04:39.6]} 10... Bg4 {[%clk 0:04:50.4]} 11. Rad1
{[%clk 0:04:37.9]} 11... Bxf3 {[%clk 0:04:49.5]} 12. Bxf3 {[%clk 0:04:35.9]}
12... Nbd7 {[%clk 0:04:49.1]} 13. a3 {[%clk 0:04:14.6]} 13... a5 {[%clk
0:04:47.7]} 14. g3 {[%clk 0:03:59.2]} 14... a4 {[%clk 0:04:46.2]} 15. Qc2 {[%clk
0:03:57.8]} 15... Nc5 {[%clk 0:04:44.9]} 16. Rfe1 {[%clk 0:03:54.8]} 16... O-O
{[%clk 0:04:43.8]} 17. Bg2 {[%clk 0:03:52.5]} 17... Rfd8 {[%clk 0:04:41.1]} 18.
h3 {[%clk 0:03:50.8]} 18... Nfd7 {[%clk 0:04:27]} 19. h4 {[%clk 0:03:43.1]}
19... Nf8 {[%clk 0:04:26]} 20. Rxd8 {[%clk 0:03:36.1]} 20... Qxd8 {[%clk
0:04:22.2]} 21. Rd1 {[%clk 0:03:34.9]} 21... Qb6 {[%clk 0:04:20.6]} 22. Kh2
{[%clk 0:03:13.2]} 22... Nfe6 {[%clk 0:04:17.7]} 23. Ne2 {[%clk 0:03:00.3]}
23... Rd8 {[%clk 0:04:13.7]} 24. f4 {[%clk 0:02:50.4]} 24... Rxd1 {[%clk
0:04:05.3]} 25. Qxd1 {[%clk 0:02:49.4]} 25... Qxb2 {[%clk 0:04:00.8]} 26. fxe5
{[%clk 0:02:32.8]} 26... Qxe5 {[%clk 0:03:58.8]} 27. Qd2 {[%clk 0:02:23.1]}
27... h6 {[%clk 0:03:54]} 28. Qc3 {[%clk 0:01:57.1]} 28... Qxc3 {[%clk 0:03:51]}
29. Nxc3 {[%clk 0:01:57]} 29... f6 {[%clk 0:03:42.2]} 30. Bh3 {[%clk 0:01:52.2]}
30... Nd4 {[%clk 0:03:40.2]} 0-1

[Event "Live Chess"]
[Site "Chess.com"]
[Date "2023.05.20"]
[Round "-"]
[White "stevochess11"]
[Black "Lewstar1"]
[Result "1-0"]
[WhiteElo "1763"]
[BlackElo "443"]
[TimeControl "300"]
[EndTime "15:37:08 PDT"]
[Termination "stevochess11 won by checkmate"]

1. d4 {[%clk 0:04:55.4]} 1... Nf6 {[%clk 0:04:43.5]} 2. Nf3 {[%clk 0:04:53.7]}
2... g6 {[%clk 0:04:40.8]} 3. Nc3 {[%clk 0:04:51.4]} 3... Bg7 {[%clk 0:04:38.5]}
4. e4 {[%clk 0:04:50.1]} 4... Nc6 {[%clk 0:04:37.5]} 5. Be3 {[%clk 0:04:48.2]}
5... d5 {[%clk 0:04:33.5]} 6. e5 {[%clk 0:04:46.9]} 6... Ng4 {[%clk 0:04:30.1]}
7. Bg5 {[%clk 0:04:42.1]} 7... f6 {[%clk 0:04:27]} 8. Bh4 {[%clk 0:04:39.5]}
8... g5 {[%clk 0:04:23.9]} 9. Bg3 {[%clk 0:04:35.2]} 9... f5 {[%clk 0:04:05.6]}
10. Nxg5 {[%clk 0:04:27.6]} 10... e6 {[%clk 0:03:55.4]} 11. h4 {[%clk
0:04:00.1]} 11... Bh6 {[%clk 0:03:38.5]} 12. Be2 {[%clk 0:03:50.9]} 12... Bxg5
{[%clk 0:03:26.4]} 13. hxg5 {[%clk 0:03:46.8]} 13... Qxg5 {[%clk 0:03:23]} 14.
Bh4 {[%clk 0:03:31.2]} 14... Qf4 {[%clk 0:03:04.4]} 15. Bxg4 {[%clk 0:03:25]}
15... fxg4 {[%clk 0:02:59.1]} 16. Nb5 {[%clk 0:03:19.2]} 16... Qe4+ {[%clk
0:02:39.7]} 17. Qe2 {[%clk 0:03:15.7]} 17... Qxe2+ {[%clk 0:02:36]} 18. Kxe2
{[%clk 0:03:15.6]} 18... O-O {[%clk 0:02:22.5]} 19. Nxc7 {[%clk 0:03:14]} 19...
Rb8 {[%clk 0:02:18]} 20. f3 {[%clk 0:03:09]} 20... Nxd4+ {[%clk 0:02:12.8]} 21.
Ke3 {[%clk 0:03:06.1]} 21... Nxc2+ {[%clk 0:02:09.4]} 22. Kd2 {[%clk 0:03:03.5]}
22... Nxa1 {[%clk 0:02:09.3]} 23. Rxa1 {[%clk 0:03:02.7]} 23... gxf3 {[%clk
0:02:03.3]} 24. gxf3 {[%clk 0:03:02.6]} 24... Rxf3 {[%clk 0:02:01.1]} 25. Rg1+
{[%clk 0:03:02.5]} 25... Kf7 {[%clk 0:01:54]} 26. Bf6 {[%clk 0:03:00.5]} 26...
Rf2+ {[%clk 0:01:34.3]} 27. Ke3 {[%clk 0:02:58.1]} 27... Rxb2 {[%clk 0:01:30.8]}
28. Rg7+ {[%clk 0:02:56.9]} 28... Kf8 {[%clk 0:01:21.3]} 29. Rxh7 {[%clk
0:02:56.1]} 29... Rxa2 {[%clk 0:01:08]} 30. Rh8+ {[%clk 0:02:50]} 30... Kf7
{[%clk 0:01:06.7]} 31. Ne8 {[%clk 0:02:45.5]} 31... Ra3+ {[%clk 0:00:46.3]} 32.
Kf4 {[%clk 0:02:44.2]} 32... Ra4+ {[%clk 0:00:43.8]} 33. Kg5 {[%clk 0:02:43.2]}
33... d4 {[%clk 0:00:37.6]} 34. Nd6# {[%clk 0:02:39.8]} 1-0

[Event "Live Chess"]
[Site "Chess.com"]
[Date "2023.05.20"]
[Round "-"]
[White "Biranidun"]
[Black "AlanPaling"]
[Result "1-0"]
[WhiteElo "2726"]
[BlackElo "1217"]
[TimeControl "300"]
[EndTime "15:37:28 PDT"]
[Termination "Biranidun won by checkmate"]

1. e4 {[%clk 0:04:58.4]} 1... Nf6 {[%clk 0:04:57]} 2. e5 {[%clk 0:04:57.7]} 2...
Nd5 {[%clk 0:04:55.2]} 3. d4 {[%clk 0:04:57]} 3... d6 {[%clk 0:04:54]} 4. Nf3
{[%clk 0:04:56.5]} 4... Bg4 {[%clk 0:04:51.1]} 5. Be2 {[%clk 0:04:54.3]} 5... e6
{[%clk 0:04:49.9]} 6. h3 {[%clk 0:04:53.2]} 6... Bh5 {[%clk 0:04:47.9]} 7. c4
{[%clk 0:04:52.4]} 7... Nb6 {[%clk 0:04:45.9]} 8. Nc3 {[%clk 0:04:51.5]} 8...
dxe5 {[%clk 0:04:42.8]} 9. Nxe5 {[%clk 0:04:47.8]} 9... Bxe2 {[%clk 0:04:41.1]}
10. Qxe2 {[%clk 0:04:41.9]} 10... N8d7 {[%clk 0:04:40.2]} 11. Nf3 {[%clk
0:04:40.3]} 11... Nf6 {[%clk 0:04:39]} 12. O-O {[%clk 0:04:35.8]} 12... Be7
{[%clk 0:04:35.6]} 13. Bf4 {[%clk 0:04:34.3]} 13... c6 {[%clk 0:04:33.9]} 14.
Rfe1 {[%clk 0:04:33.1]} 14... O-O {[%clk 0:04:32.2]} 15. Rad1 {[%clk 0:04:31.5]}
15... Bb4 {[%clk 0:04:12.9]} 16. Bd2 {[%clk 0:04:20.8]} 16... a5 {[%clk
0:04:03.3]} 17. a3 {[%clk 0:04:16]} 17... Bxc3 {[%clk 0:04:01.4]} 18. Bxc3
{[%clk 0:04:15.9]} 18... a4 {[%clk 0:03:59.7]} 19. Ne5 {[%clk 0:04:11]} 19...
Nbd7 {[%clk 0:03:54.7]} 20. Bb4 {[%clk 0:04:01]} 20... Re8 {[%clk 0:03:52.5]}
21. g4 {[%clk 0:03:44.6]} 21... Nf8 {[%clk 0:03:48.7]} 22. Qf3 {[%clk
0:03:42.4]} 22... Qc7 {[%clk 0:03:39.8]} 23. g5 {[%clk 0:03:40.9]} 23... N8d7
{[%clk 0:03:22.4]} 24. gxf6 {[%clk 0:03:38.8]} 24... Nxf6 {[%clk 0:03:19.2]} 25.
Kh1 {[%clk 0:03:38.3]} 25... Rad8 {[%clk 0:03:15.1]} 26. Rg1 {[%clk 0:03:36.8]}
26... b5 {[%clk 0:03:04.8]} 27. Qxf6 {[%clk 0:03:35.1]} 27... g6 {[%clk
0:02:59.6]} 28. Rd3 {[%clk 0:03:28.8]} 28... bxc4 {[%clk 0:02:55]} 29. Rdg3
{[%clk 0:03:27.7]} 29... Rxd4 {[%clk 0:02:48.4]} 30. Nxg6 {[%clk 0:03:26.7]}
30... fxg6 {[%clk 0:02:43.4]} 31. Rxg6+ {[%clk 0:03:26.4]} 31... hxg6 {[%clk
0:02:40.7]} 32. Rxg6+ {[%clk 0:03:26.3]} 32... Kh7 {[%clk 0:02:38.2]} 33. Rh6+
{[%clk 0:03:25.8]} 33... Kg8 {[%clk 0:02:37]} 34. Rh8# {[%clk 0:03:25.7]} 1-0

[Event "Live Chess"]
[Site "Chess.com"]
[Date "2023.05.20"]
[Round "-"]
[White "LiamBellwood"]
[Black "Missedidea"]
[Result "0-1"]
[WhiteElo "2075"]
[BlackElo "1792"]
[TimeControl "300"]
[EndTime "15:37:41 PDT"]
[Termination "Missedidea won by resignation"]

1. d4 {[%clk 0:04:56.6]} 1... Nf6 {[%clk 0:04:58.1]} 2. Nc3 {[%clk 0:04:56.2]}
2... c5 {[%clk 0:04:56.1]} 3. Bf4 {[%clk 0:04:55.7]} 3... cxd4 {[%clk
0:04:54.8]} 4. Qxd4 {[%clk 0:04:55.6]} 4... Nc6 {[%clk 0:04:53.1]} 5. Qd1 {[%clk
0:04:54.8]} 5... d6 {[%clk 0:04:51.2]} 6. e4 {[%clk 0:04:52.8]} 6... e5 {[%clk
0:04:48.3]} 7. Bg5 {[%clk 0:04:51.1]} 7... Be7 {[%clk 0:04:47.2]} 8. Bxf6 {[%clk
0:04:47.5]} 8... Bxf6 {[%clk 0:04:45.3]} 9. Nd5 {[%clk 0:04:46.6]} 9... O-O
{[%clk 0:04:41.4]} 10. Ne2 {[%clk 0:04:34.5]} 10... Be6 {[%clk 0:04:38.4]} 11.
Nec3 {[%clk 0:04:33.6]} 11... Nd4 {[%clk 0:04:35]} 12. Bc4 {[%clk 0:04:21.8]}
12... Bg5 {[%clk 0:04:32.5]} 13. O-O {[%clk 0:04:16.4]} 13... a6 {[%clk
0:04:24.9]} 14. f4 {[%clk 0:04:14.4]} 14... Bxd5 {[%clk 0:04:17.2]} 15. Nxd5
{[%clk 0:04:10.5]} 15... b5 {[%clk 0:04:03.1]} 16. fxg5 {[%clk 0:03:15.6]} 16...
bxc4 {[%clk 0:04:00.4]} 17. Qh5 {[%clk 0:03:15.2]} 17... Ne6 {[%clk 0:03:31.7]}
18. Nf6+ {[%clk 0:02:51.2]} 18... gxf6 {[%clk 0:03:30.1]} 19. gxf6 {[%clk
0:02:51.1]} 19... Kh8 {[%clk 0:03:24.4]} 20. Rf3 {[%clk 0:02:23.5]} 20... Nf4
{[%clk 0:03:16.4]} 21. Qh6 {[%clk 0:02:22.7]} 21... Rg8 {[%clk 0:03:12.1]} 22.
g3 {[%clk 0:02:21.9]} 22... Rg6 {[%clk 0:03:00.8]} 23. Qh4 {[%clk 0:02:21]}
23... Ne2+ {[%clk 0:02:42.5]} 24. Kf2 {[%clk 0:02:11.2]} 24... Nd4 {[%clk
0:02:41.3]} 0-1

[Event "Live Chess"]
[Site "Chess.com"]
[Date "2023.05.20"]
[Round "-"]
[White "ossie57"]
[Black "Duke_of_Bebington"]
[Result "0-1"]
[WhiteElo "1918"]
[BlackElo "1589"]
[TimeControl "300"]
[EndTime "15:37:46 PDT"]
[Termination "Duke_of_Bebington won by resignation"]

1. d4 {[%clk 0:04:58.2]} 1... d5 {[%clk 0:04:58]} 2. Nc3 {[%clk 0:04:57.2]} 2...
Nf6 {[%clk 0:04:54.8]} 3. Bf4 {[%clk 0:04:56.4]} 3... a6 {[%clk 0:04:38.4]} 4.
e3 {[%clk 0:04:55]} 4... Bf5 {[%clk 0:04:33.7]} 5. Bd3 {[%clk 0:04:42.3]} 5...
Bxd3 {[%clk 0:04:31.9]} 6. Qxd3 {[%clk 0:04:41.4]} 6... Nbd7 {[%clk 0:04:30.2]}
7. O-O-O {[%clk 0:04:39.8]} 7... e6 {[%clk 0:04:28.8]} 8. Nf3 {[%clk 0:04:36.7]}
8... c5 {[%clk 0:04:27.1]} 9. Ne5 {[%clk 0:04:33.7]} 9... c4 {[%clk 0:04:18.3]}
10. Qd2 {[%clk 0:04:27.2]} 10... Bb4 {[%clk 0:04:16]} 11. a3 {[%clk 0:04:26.3]}
11... Ba5 {[%clk 0:04:14.7]} 12. g4 {[%clk 0:04:25.5]} 12... Nb6 {[%clk
0:04:08.4]} 13. g5 {[%clk 0:04:22.3]} 13... Ne4 {[%clk 0:04:05.7]} 14. Qe1
{[%clk 0:04:21.2]} 14... Nxc3 {[%clk 0:04:02.3]} 15. bxc3 {[%clk 0:04:20]} 15...
Na4 {[%clk 0:03:55.2]} 16. g6 {[%clk 0:04:00.6]} 16... f6 {[%clk 0:03:52]} 17.
Nxc4 {[%clk 0:03:53]} 17... dxc4 {[%clk 0:03:45.5]} 18. gxh7 {[%clk 0:03:46.1]}
18... Qb6 {[%clk 0:03:41.3]} 19. Rd2 {[%clk 0:03:35.3]} 19... Bxc3 {[%clk
0:03:37.3]} 20. Kd1 {[%clk 0:03:29.3]} 20... Qb1+ {[%clk 0:03:22.3]} 21. Ke2
{[%clk 0:03:28.2]} 21... Qxe1+ {[%clk 0:03:17.8]} 22. Rxe1 {[%clk 0:03:27.2]}
22... Bxd2 {[%clk 0:03:17.3]} 23. Kxd2 {[%clk 0:03:27.1]} 23... Rxh7 {[%clk
0:03:15.5]} 24. Rb1 {[%clk 0:03:24.8]} 24... b5 {[%clk 0:03:13.1]} 25. Bg3
{[%clk 0:03:19.5]} 25... Rd8 {[%clk 0:03:05.9]} 26. Ke2 {[%clk 0:03:13.8]} 26...
g6 {[%clk 0:03:00]} 27. Kf3 {[%clk 0:03:12.4]} 27... Nc3 {[%clk 0:02:56.7]} 28.
Re1 {[%clk 0:03:06]} 28... Nd5 {[%clk 0:02:45.8]} 29. Rb1 {[%clk 0:03:02.8]}
29... Re7 {[%clk 0:02:39.9]} 30. Kg2 {[%clk 0:02:59.4]} 30... e5 {[%clk
0:02:38.7]} 31. dxe5 {[%clk 0:02:58]} 31... fxe5 {[%clk 0:02:38.6]} 32. a4
{[%clk 0:02:52.6]} 32... Rb8 {[%clk 0:02:35.6]} 33. axb5 {[%clk 0:02:51.1]}
33... axb5 {[%clk 0:02:35.5]} 34. Rd1 {[%clk 0:02:46.1]} 34... Nc3 {[%clk
0:02:29.4]} 35. Rd6 {[%clk 0:02:42.9]} 35... Kf7 {[%clk 0:02:25.3]} 36. Rd2
{[%clk 0:02:27.3]} 36... Ne4 {[%clk 0:02:23.2]} 37. Rd5 {[%clk 0:02:24.3]} 37...
Nxg3 {[%clk 0:02:21.6]} 38. hxg3 {[%clk 0:02:22.7]} 38... Ke6 {[%clk 0:02:12.4]}
39. Rd1 {[%clk 0:02:20.7]} 39... b4 {[%clk 0:02:10.1]} 40. Ra1 {[%clk
0:02:17.5]} 40... Reb7 {[%clk 0:02:06.7]} 41. Ra6+ {[%clk 0:02:14.9]} 41... Rb6
{[%clk 0:02:05.3]} 42. Ra7 {[%clk 0:02:10.7]} 42... b3 {[%clk 0:02:03.3]} 43.
cxb3 {[%clk 0:02:10]} 43... cxb3 {[%clk 0:01:58.7]} 44. Rg7 {[%clk 0:02:09.9]}
44... Kf6 {[%clk 0:01:56.9]} 45. Rh7 {[%clk 0:02:05.6]} 45... b2 {[%clk
0:01:55.2]} 0-1

[Event "Live Chess"]
[Site "Chess.com"]
[Date "2023.05.20"]
[Round "-"]
[White "MrBlond89"]
[Black "VicLemon"]
[Result "0-1"]
[WhiteElo "1352"]
[BlackElo "1389"]
[TimeControl "300"]
[EndTime "15:37:48 PDT"]
[Termination "VicLemon won - game abandoned"]

1. e4 {[%clk 0:04:59.6]} 1... c5 {[%clk 0:04:56.6]} 2. d4 {[%clk 0:04:57.9]}
2... cxd4 {[%clk 0:04:54.8]} 3. c3 {[%clk 0:04:57.4]} 3... d5 {[%clk 0:04:53.7]}
4. cxd4 {[%clk 0:04:54.5]} 4... dxe4 {[%clk 0:04:51.3]} 5. Nc3 {[%clk
0:04:53.6]} 5... Nf6 {[%clk 0:04:44.2]} 6. Nge2 {[%clk 0:04:50.7]} 6... Nc6
{[%clk 0:04:36.4]} 7. d5 {[%clk 0:04:44.2]} 7... Nb4 {[%clk 0:04:22]} 8. Qa4+
{[%clk 0:04:34.4]} 8... Bd7 {[%clk 0:03:52.4]} 9. Qxb4 {[%clk 0:04:28.9]} 9...
e6 {[%clk 0:03:51.4]} 10. dxe6 {[%clk 0:04:23.1]} 10... Bxb4 {[%clk 0:03:47.9]}
11. exf7+ {[%clk 0:04:16.5]} 11... Kxf7 {[%clk 0:03:46.6]} 12. Bg5 {[%clk
0:04:13]} 12... Re8 {[%clk 0:03:39.8]} 13. O-O-O {[%clk 0:04:11.3]} 13... Qa5
{[%clk 0:03:32.8]} 14. Bxf6 {[%clk 0:03:58.3]} 14... Kxf6 {[%clk 0:03:23.9]} 15.
Rxd7 {[%clk 0:03:56.9]} 15... Bxc3 {[%clk 0:03:22.5]} 16. Nxc3 {[%clk
0:03:55.1]} 16... Qg5+ {[%clk 0:03:17.2]} 17. Kb1 {[%clk 0:03:40.7]} 17... Qf5
{[%clk 0:03:13.7]} 18. Bc4 {[%clk 0:03:16.9]} 18... Qxd7 {[%clk 0:03:07.6]} 19.
Nd5+ {[%clk 0:03:12.3]} 19... Kg6 {[%clk 0:03:01.6]} 20. Nf4+ {[%clk 0:03:09.1]}
20... Kh6 {[%clk 0:02:59.3]} 21. Kc2 {[%clk 0:02:46.1]} 21... e3 {[%clk
0:02:44.6]} 22. fxe3 {[%clk 0:02:42.6]} 22... Qf5+ {[%clk 0:02:42.5]} 23. Bd3
{[%clk 0:02:39.1]} 23... Rac8+ {[%clk 0:02:39.8]} 24. Kd2 {[%clk 0:02:37.1]}
24... Qa5+ {[%clk 0:02:36.4]} 25. Ke2 {[%clk 0:02:25.8]} 25... Qb6 {[%clk
0:02:16.6]} 26. Nd5 {[%clk 0:02:20.7]} 26... Qxb2+ {[%clk 0:02:14.9]} 0-1